[Event "Titled Tuesday Blitz July 25 Late 2023"]
[White "Lamaze, Simon"]
[Black "Naroditsky, Daniel"]
[WhiteFideId "36069264"]
[BlackFideId "2026961"]
[WhiteElo "2617"]
[BlackElo "3143"]
[Result "0-1"]
[Round "3"]
[TimeControl "180+2"]
[Date "2023.07.25"]
[WhiteClock "0:00:12"]
[BlackClock "0:00:39"]
[Board "47"]

1. e4 {[%clk 0:03:00]}  Nf6 {[%clk 0:03:00]} 2. e5 {[%clk 0:03:00]}  Nd5 {[%clk 0:02:58]} 3. Nc3 {[%clk 0:03:00]}  Nxc3 {[%clk 0:02:46]} 4. dxc3 {[%clk 0:03:01]}  d6 {[%clk 0:02:44]} 5. Nf3 {[%clk 0:03:01]}  Nc6 {[%clk 0:02:43]} 6. Bf4 {[%clk 0:03:00]}  g6 {[%clk 0:02:40]} 7. Bc4 {[%clk 0:02:55]}  Bg7 {[%clk 0:02:40]} 8. Qe2 {[%clk 0:02:56]}  O-O {[%clk 0:02:35]} 9. O-O-O {[%clk 0:02:53]}  Bg4 {[%clk 0:02:34]} 10. e6 {[%clk 0:02:51]}  fxe6 {[%clk 0:02:20]} 11. Bxe6+ {[%clk 0:02:52]}  Bxe6 {[%clk 0:02:21]} 12. Qxe6+ {[%clk 0:02:52]}  Kh8 {[%clk 0:02:22]} 13. Bg5 {[%clk 0:02:42]}  Qc8 {[%clk 0:02:04]} 14. Rhe1 {[%clk 0:02:39]}  Qxe6 {[%clk 0:02:03]} 15. Rxe6 {[%clk 0:02:40]}  Rf7 {[%clk 0:02:03]} 16. Rde1 {[%clk 0:02:35]}  Bf8 {[%clk 0:02:03]} 17. Bh4 {[%clk 0:02:32]}  Kg8 {[%clk 0:01:49]} 18. c4 {[%clk 0:01:43]}  Nd8 {[%clk 0:01:35]} 19. R6e4 {[%clk 0:01:38]}  e5 {[%clk 0:01:32]} 20. c5 {[%clk 0:01:38]}  Ne6 {[%clk 0:01:30]} 21. cxd6 {[%clk 0:01:38]}  cxd6 {[%clk 0:01:31]} 22. Rd1 {[%clk 0:01:34]}  Rc8 {[%clk 0:01:24]} 23. Bg3 {[%clk 0:01:19]}  b5 {[%clk 0:01:16]} 24. c3 {[%clk 0:01:18]}  a5 {[%clk 0:01:16]} 25. Kb1 {[%clk 0:01:10]}  Rb7 {[%clk 0:01:12]} 26. Ne1 {[%clk 0:00:47]}  b4 {[%clk 0:01:02]} 27. cxb4 {[%clk 0:00:47]}  axb4 {[%clk 0:01:03]} 28. b3 {[%clk 0:00:44]}  Rb5 {[%clk 0:00:52]} 29. Nc2 {[%clk 0:00:41]}  Rcb8 {[%clk 0:00:46]} 30. Ne3 {[%clk 0:00:39]}  Ra8 {[%clk 0:00:45]} 31. Rd5 {[%clk 0:00:30]}  Nc5 {[%clk 0:00:42]} 32. Rc4 {[%clk 0:00:29]}  Kf7 {[%clk 0:00:40]} 33. Rc2 {[%clk 0:00:25]}  Ke6 {[%clk 0:00:40]} 34. Rdd2 {[%clk 0:00:21]}  Ne4 {[%clk 0:00:39]} 35. Rd3 {[%clk 0:00:16]}  Nc3+ {[%clk 0:00:40]} 36. Rdxc3 {[%clk 0:00:14]}  bxc3 {[%clk 0:00:41]} 37. Rxc3 {[%clk 0:00:12]}  d5 {[%clk 0:00:39]} 0-1


[Site "https://www.chess.com"]

[Event "Titled Tuesday Blitz July 25 Late 2023"]
[White "Tanaka, Taira Tyler"]
[Black "Tabatabaei, M. Amin"]
[WhiteFideId "7002351"]
[BlackFideId "12521213"]
[WhiteElo "2612"]
[BlackElo "3031"]
[Result "1/2-1/2"]
[Round "3"]
[TimeControl "180+2"]
[Date "2023.07.25"]
[WhiteClock "0:00:23"]
[BlackClock "0:01:54"]
[Board "49"]

1. Nf3 {[%clk 0:02:59]}  g6 {[%clk 0:03:00]} 2. g3 {[%clk 0:02:49]}  d6 {[%clk 0:03:01]} 3. Bg2 {[%clk 0:02:50]}  Bg7 {[%clk 0:03:02]} 4. O-O {[%clk 0:02:50]}  f5 {[%clk 0:03:03]} 5. d3 {[%clk 0:02:46]}  Nf6 {[%clk 0:03:04]} 6. Nbd2 {[%clk 0:02:43]}  O-O {[%clk 0:03:03]} 7. e4 {[%clk 0:02:44]}  e5 {[%clk 0:03:04]} 8. Qe2 {[%clk 0:02:36]}  Nc6 {[%clk 0:03:04]} 9. c3 {[%clk 0:02:35]}  Qe7 {[%clk 0:03:04]} 10. a4 {[%clk 0:02:33]}  a5 {[%clk 0:03:04]} 11. Re1 {[%clk 0:02:28]}  h6 {[%clk 0:03:05]} 12. Nc4 {[%clk 0:02:27]}  g5 {[%clk 0:03:04]} 13. exf5 {[%clk 0:02:16]}  Bxf5 {[%clk 0:03:05]} 14. Bd2 {[%clk 0:02:05]}  Rae8 {[%clk 0:03:04]} 15. b4 {[%clk 0:02:02]}  axb4 {[%clk 0:03:03]} 16. cxb4 {[%clk 0:02:02]}  d5 {[%clk 0:03:04]} 17. Ncxe5 {[%clk 0:01:58]}  Nxb4 {[%clk 0:03:03]} 18. Bxb4 {[%clk 0:01:32]}  Qxb4 {[%clk 0:03:04]} 19. d4 {[%clk 0:01:32]}  Ne4 {[%clk 0:03:03]} 20. Qb5 {[%clk 0:01:29]}  Qxb5 {[%clk 0:02:44]} 21. axb5 {[%clk 0:01:29]}  g4 {[%clk 0:02:40]} 22. Nh4 {[%clk 0:01:23]}  Bxe5 {[%clk 0:02:40]} 23. Nxf5 {[%clk 0:01:16]}  Rxf5 {[%clk 0:02:36]} 24. Bxe4 {[%clk 0:01:10]}  dxe4 {[%clk 0:02:36]} 25. Rxe4 {[%clk 0:01:10]}  h5 {[%clk 0:02:32]} 26. Rae1 {[%clk 0:01:07]}  Kf7 {[%clk 0:02:31]} 27. dxe5 {[%clk 0:01:05]}  Ke6 {[%clk 0:02:31]} 28. Rc4 {[%clk 0:01:02]}  Re7 {[%clk 0:02:30]} 29. Rc5 {[%clk 0:01:01]}  Rd7 {[%clk 0:02:28]} 30. Re2 {[%clk 0:00:56]}  Rh7 {[%clk 0:02:27]} 31. Kg2 {[%clk 0:00:54]}  Rd7 {[%clk 0:02:23]} 32. h3 {[%clk 0:00:51]}  Rg7 {[%clk 0:02:17]} 33. hxg4 {[%clk 0:00:51]}  hxg4 {[%clk 0:02:18]} 34. Rc4 {[%clk 0:00:52]}  Rxe5 {[%clk 0:02:18]} 35. Rec2 {[%clk 0:00:49]}  Kd6 {[%clk 0:02:15]} 36. Rd4+ {[%clk 0:00:41]}  Rd5 {[%clk 0:02:16]} 37. Rb4 {[%clk 0:00:34]}  Rd3 {[%clk 0:02:14]} 38. Rcc4 {[%clk 0:00:33]}  Rd5 {[%clk 0:02:12]} 39. b6 {[%clk 0:00:26]}  c6 {[%clk 0:02:13]} 40. Rxg4 {[%clk 0:00:25]}  Rxg4 {[%clk 0:02:13]} 41. Rxg4 {[%clk 0:00:25]}  Rb5 {[%clk 0:02:14]} 42. Rg6+ {[%clk 0:00:24]}  Ke5 {[%clk 0:02:05]} 43. Rg5+ {[%clk 0:00:12]}  Kd4 {[%clk 0:02:06]} 44. Rxb5 {[%clk 0:00:12]}  cxb5 {[%clk 0:02:07]} 45. Kf3 {[%clk 0:00:13]}  Kd3 {[%clk 0:02:04]} 46. g4 {[%clk 0:00:13]}  b4 {[%clk 0:02:05]} 47. g5 {[%clk 0:00:14]}  b3 {[%clk 0:02:06]} 48. g6 {[%clk 0:00:14]}  b2 {[%clk 0:02:07]} 49. g7 {[%clk 0:00:15]}  b1=Q {[%clk 0:02:07]} 50. g8=Q {[%clk 0:00:16]}  Qxb6 {[%clk 0:01:59]} 51. Qd5+ {[%clk 0:00:16]}  Kc3 {[%clk 0:02:00]} 52. Qe5+ {[%clk 0:00:16]}  Kc2 {[%clk 0:01:57]} 53. Qe2+ {[%clk 0:00:16]}  Kb1 {[%clk 0:01:56]} 54. Qe1+ {[%clk 0:00:17]}  Ka2 {[%clk 0:01:56]} 55. Qe2+ {[%clk 0:00:17]}  Ka3 {[%clk 0:01:52]} 56. Qe3+ {[%clk 0:00:18]}  Qxe3+ {[%clk 0:01:50]} 57. Kxe3 {[%clk 0:00:19]}  b5 {[%clk 0:01:48]} 58. f4 {[%clk 0:00:19]}  b4 {[%clk 0:01:48]} 59. f5 {[%clk 0:00:20]}  b3 {[%clk 0:01:49]} 60. f6 {[%clk 0:00:20]}  b2 {[%clk 0:01:50]} 61. f7 {[%clk 0:00:21]}  b1=Q {[%clk 0:01:51]} 62. f8=Q+ {[%clk 0:00:22]}  Ka2 {[%clk 0:01:51]} 63. Qa8+ {[%clk 0:00:22]}  Kb2 {[%clk 0:01:52]} 64. Qb7+ {[%clk 0:00:23]}  Ka1 {[%clk 0:01:53]} 65. Qxb1+ {[%clk 0:00:23]}  Kxb1 {[%clk 0:01:54]} 1/2-1/2


[Site "https://www.chess.com"]

[Event "Titled Tuesday Blitz July 25 Late 2023"]
[White "Mekhitarian, Krikor Sevag"]
[Black "Senft, Sean"]
[WhiteFideId "2107660"]
[BlackFideId "2044960"]
[WhiteElo "2771"]
[BlackElo "2315"]
[Result "1-0"]
[Round "3"]
[TimeControl "180+2"]
[Date "2023.07.25"]
[WhiteClock "0:00:02"]
[BlackClock "0:00:07"]
[Board "53"]

1. Nf3 {[%clk 0:03:00]}  d5 {[%clk 0:02:59]} 2. c4 {[%clk 0:03:00]}  c6 {[%clk 0:03:00]} 3. d4 {[%clk 0:02:58]}  Nf6 {[%clk 0:03:00]} 4. e3 {[%clk 0:02:54]}  e6 {[%clk 0:03:01]} 5. Nc3 {[%clk 0:02:50]}  a6 {[%clk 0:03:01]} 6. b3 {[%clk 0:02:50]}  Bb4 {[%clk 0:03:02]} 7. Bd2 {[%clk 0:02:50]}  Nbd7 {[%clk 0:03:02]} 8. Bd3 {[%clk 0:02:50]}  O-O {[%clk 0:03:03]} 9. O-O {[%clk 0:02:49]}  Bd6 {[%clk 0:03:03]} 10. Re1 {[%clk 0:02:44]}  h6 {[%clk 0:03:02]} 11. Rc1 {[%clk 0:02:44]}  e5 {[%clk 0:02:55]} 12. cxd5 {[%clk 0:02:42]}  cxd5 {[%clk 0:02:53]} 13. dxe5 {[%clk 0:02:43]}  Nxe5 {[%clk 0:02:53]} 14. Be2 {[%clk 0:02:31]}  Bf5 {[%clk 0:02:45]} 15. Nd4 {[%clk 0:02:25]}  Bg6 {[%clk 0:02:42]} 16. h3 {[%clk 0:02:22]}  Nd3 {[%clk 0:02:38]} 17. Bxd3 {[%clk 0:02:16]}  Bxd3 {[%clk 0:02:39]} 18. Nce2 {[%clk 0:02:13]}  Bg6 {[%clk 0:02:25]} 19. Bc3 {[%clk 0:02:09]}  Rc8 {[%clk 0:02:23]} 20. Bb2 {[%clk 0:02:07]}  Qe7 {[%clk 0:02:19]} 21. Rxc8 {[%clk 0:02:02]}  Rxc8 {[%clk 0:02:19]} 22. Qa1 {[%clk 0:02:03]}  Ne4 {[%clk 0:02:16]} 23. Rc1 {[%clk 0:02:02]}  Rxc1+ {[%clk 0:02:14]} 24. Qxc1 {[%clk 0:02:02]}  Qh4 {[%clk 0:02:12]} 25. Qe1 {[%clk 0:01:50]}  Qf6 {[%clk 0:01:46]} 26. Ba1 {[%clk 0:01:47]}  Be5 {[%clk 0:01:44]} 27. f3 {[%clk 0:01:39]}  Nd6 {[%clk 0:01:40]} 28. Qd2 {[%clk 0:01:25]}  Nf5 {[%clk 0:01:37]} 29. Bc3 {[%clk 0:01:20]}  Nxd4 {[%clk 0:01:26]} 30. Bxd4 {[%clk 0:01:20]}  Qd6 {[%clk 0:01:19]} 31. Bxe5 {[%clk 0:01:18]}  Qxe5 {[%clk 0:01:20]} 32. Qd4 {[%clk 0:01:13]}  Qf5 {[%clk 0:01:15]} 33. Nc3 {[%clk 0:01:09]}  Qc2 {[%clk 0:01:11]} 34. b4 {[%clk 0:01:07]}  Bf5 {[%clk 0:00:44]} 35. a4 {[%clk 0:01:01]}  Be6 {[%clk 0:00:42]} 36. a5 {[%clk 0:01:01]}  Qc1+ {[%clk 0:00:42]} 37. Kh2 {[%clk 0:01:01]}  Kh7 {[%clk 0:00:37]} 38. Nxd5 {[%clk 0:00:22]}  Bxd5 {[%clk 0:00:36]} 39. Qxd5 {[%clk 0:00:22]}  Qxe3 {[%clk 0:00:34]} 40. Qxf7 {[%clk 0:00:22]}  Qe5+ {[%clk 0:00:33]} 41. f4 {[%clk 0:00:22]}  Qb5 {[%clk 0:00:32]} 42. Qe7 {[%clk 0:00:19]}  Qf5 {[%clk 0:00:28]} 43. Qe5 {[%clk 0:00:10]}  Qb1 {[%clk 0:00:20]} 44. Qd4 {[%clk 0:00:08]}  Qc1 {[%clk 0:00:16]} 45. Qe4+ {[%clk 0:00:07]}  Kh8 {[%clk 0:00:16]} 46. Qe8+ {[%clk 0:00:03]}  Kh7 {[%clk 0:00:16]} 47. Qe4+ {[%clk 0:00:04]}  Kh8 {[%clk 0:00:17]} 48. Qd4 {[%clk 0:00:05]}  Qf1 {[%clk 0:00:15]} 49. h4 {[%clk 0:00:04]}  Qe1 {[%clk 0:00:15]} 50. g3 {[%clk 0:00:01]}  Qe2+ {[%clk 0:00:14]} 51. Kh3 {[%clk 0:00:02]}  Qe6+ {[%clk 0:00:15]} 52. Kg2 {[%clk 0:00:02]}  Qe2+ {[%clk 0:00:14]} 53. Kg1 {[%clk 0:00:02]}  Qe1+ {[%clk 0:00:14]} 54. Kg2 {[%clk 0:00:03]}  Qe2+ {[%clk 0:00:15]} 55. Qf2 {[%clk 0:00:03]}  Qe4+ {[%clk 0:00:15]} 56. Kh2 {[%clk 0:00:03]}  Qxb4 {[%clk 0:00:15]} 57. Qa2 {[%clk 0:00:03]}  b6 {[%clk 0:00:13]} 58. axb6 {[%clk 0:00:03]}  Qxb6 {[%clk 0:00:14]} 59. Qf7 {[%clk 0:00:03]}  Qb8 {[%clk 0:00:13]} 60. Qd5 {[%clk 0:00:02]}  Qa7 {[%clk 0:00:03]} 61. Qa5 {[%clk 0:00:01]}  Qb7 {[%clk 0:00:03]} 62. f5 {[%clk 0:00:02]}  Qb5 {[%clk 0:00:03]} 63. Qd8+ {[%clk 0:00:02]}  Kh7 {[%clk 0:00:03]} 64. Qc8 {[%clk 0:00:01]}  a5 {[%clk 0:00:03]} 65. Qe6 {[%clk 0:00:01]}  a4 {[%clk 0:00:03]} 66. Qg6+ {[%clk 0:00:02]}  Kh8 {[%clk 0:00:03]} 67. Kh3 {[%clk 0:00:03]}  a3 {[%clk 0:00:03]} 68. f6 {[%clk 0:00:03]}  gxf6 {[%clk 0:00:02]} 69. Qxh6+ {[%clk 0:00:03]}  Kg8 {[%clk 0:00:03]} 70. Qg6+ {[%clk 0:00:04]}  Kh8 {[%clk 0:00:04]} 71. Qxf6+ {[%clk 0:00:05]}  Kg8 {[%clk 0:00:04]} 72. Qg6+ {[%clk 0:00:05]}  Kh8 {[%clk 0:00:05]} 73. Qh6+ {[%clk 0:00:04]}  Kg8 {[%clk 0:00:06]} 74. Qe6+ {[%clk 0:00:03]}  Kh8 {[%clk 0:00:06]} 75. Qc8+ {[%clk 0:00:04]}  Kh7 {[%clk 0:00:06]} 76. Qc2+ {[%clk 0:00:03]}  Kh8 {[%clk 0:00:06]} 77. Qc3+ {[%clk 0:00:04]}  Kg8 {[%clk 0:00:07]} 78. Qxa3 {[%clk 0:00:04]}  Qf5+ {[%clk 0:00:07]} 79. Kh2 {[%clk 0:00:03]}  Qf2+ {[%clk 0:00:07]} 80. Kh3 {[%clk 0:00:04]}  Qf5+ {[%clk 0:00:08]} 81. g4 {[%clk 0:00:04]}  Qf1+ {[%clk 0:00:08]} 82. Kg3 {[%clk 0:00:05]}  Qg1+ {[%clk 0:00:09]} 83. Kf4 {[%clk 0:00:04]}  Qf2+ {[%clk 0:00:09]} 84. Kg5 {[%clk 0:00:04]}  Qd2+ {[%clk 0:00:08]} 85. Kh5 {[%clk 0:00:04]}  Qd5+ {[%clk 0:00:08]} 86. g5 {[%clk 0:00:04]}  Qf3+ {[%clk 0:00:07]} 87. Qxf3 {[%clk 0:00:02]} 1-0


[Site "https://www.chess.com"]

[Event "Titled Tuesday Blitz July 25 Late 2023"]
[White "Nihal Sarin"]
[Black "JERO-8914"]
[WhiteFideId "25092340"]
[WhiteElo "3071"]
[BlackElo "2504"]
[Result "1-0"]
[Round "3"]
[TimeControl "180+2"]
[Date "2023.07.25"]
[WhiteClock "0:02:31"]
[BlackClock "0:01:01"]
[Board "55"]

1. e4 {[%clk 0:03:00]}  c6 {[%clk 0:02:58]} 2. d4 {[%clk 0:03:00]}  d5 {[%clk 0:02:58]} 3. e5 {[%clk 0:03:01]}  Bf5 {[%clk 0:02:58]} 4. h4 {[%clk 0:03:02]}  h5 {[%clk 0:02:58]} 5. c4 {[%clk 0:03:02]}  e6 {[%clk 0:02:58]} 6. Nc3 {[%clk 0:03:02]}  Nd7 {[%clk 0:02:58]} 7. Nge2 {[%clk 0:03:02]}  dxc4 {[%clk 0:02:48]} 8. Ng3 {[%clk 0:03:02]}  Bg6 {[%clk 0:02:48]} 9. Bxc4 {[%clk 0:03:02]}  Nb6 {[%clk 0:02:48]} 10. Bb3 {[%clk 0:03:01]}  Ne7 {[%clk 0:02:49]} 11. Bg5 {[%clk 0:03:00]}  Qd7 {[%clk 0:02:42]} 12. O-O {[%clk 0:02:58]}  Nf5 {[%clk 0:02:40]} 13. Nxf5 {[%clk 0:02:57]}  Bxf5 {[%clk 0:02:40]} 14. Qe2 {[%clk 0:02:55]}  Be7 {[%clk 0:02:37]} 15. Qe3 {[%clk 0:02:53]}  Bg6 {[%clk 0:02:25]} 16. Rad1 {[%clk 0:02:51]}  Bxg5 {[%clk 0:02:23]} 17. Qxg5 {[%clk 0:02:52]}  Qe7 {[%clk 0:02:24]} 18. Qf4 {[%clk 0:02:48]}  Rd8 {[%clk 0:02:21]} 19. f3 {[%clk 0:02:44]}  O-O {[%clk 0:02:16]} 20. Ne4 {[%clk 0:02:44]}  Nd5 {[%clk 0:02:07]} 21. Bxd5 {[%clk 0:02:42]}  Rxd5 {[%clk 0:02:08]} 22. Nd6 {[%clk 0:02:42]}  c5 {[%clk 0:02:01]} 23. dxc5 {[%clk 0:02:40]}  Rxc5 {[%clk 0:02:02]} 24. Rd2 {[%clk 0:02:37]}  Rd8 {[%clk 0:01:49]} 25. Rfd1 {[%clk 0:02:35]}  Rd7 {[%clk 0:01:23]} 26. Nf5 {[%clk 0:02:31]}  exf5 {[%clk 0:01:13]} 27. Rxd7 {[%clk 0:02:31]}  Qe6 {[%clk 0:01:09]} 28. Rxb7 {[%clk 0:02:31]}  Qxa2 {[%clk 0:01:08]} 29. Rd8+ {[%clk 0:02:31]}  Kh7 {[%clk 0:01:01]} 30. Rbb8 {[%clk 0:02:31]} 1-0


[Site "https://www.chess.com"]

[Event "Titled Tuesday Blitz July 25 Late 2023"]
[White "Czarnota, Pawel"]
[Black "Molenda, Marcin"]
[WhiteFideId "1121219"]
[BlackFideId "1173065"]
[WhiteElo "2819"]
[BlackElo "2504"]
[Result "0-1"]
[Round "3"]
[TimeControl "180+2"]
[Date "2023.07.25"]
[WhiteClock "0:00:00"]
[BlackClock "0:00:03"]
[Board "57"]

1. e4 {[%clk 0:03:00]}  c5 {[%clk 0:02:58]} 2. Nf3 {[%clk 0:03:01]}  e6 {[%clk 0:02:58]} 3. d4 {[%clk 0:03:01]}  cxd4 {[%clk 0:02:59]} 4. Nxd4 {[%clk 0:03:01]}  a6 {[%clk 0:03:00]} 5. Nc3 {[%clk 0:03:01]}  Qc7 {[%clk 0:03:00]} 6. Be2 {[%clk 0:03:00]}  Nf6 {[%clk 0:03:00]} 7. O-O {[%clk 0:02:59]}  Be7 {[%clk 0:03:01]} 8. f4 {[%clk 0:02:58]}  d6 {[%clk 0:03:02]} 9. Kh1 {[%clk 0:02:58]}  O-O {[%clk 0:03:02]} 10. a4 {[%clk 0:02:58]}  Nbd7 {[%clk 0:02:59]} 11. Bf3 {[%clk 0:02:57]}  Rb8 {[%clk 0:02:52]} 12. g4 {[%clk 0:02:51]}  b6 {[%clk 0:02:38]} 13. g5 {[%clk 0:02:50]}  Ne8 {[%clk 0:02:38]} 14. Bg2 {[%clk 0:02:49]}  Bb7 {[%clk 0:02:37]} 15. Rf3 {[%clk 0:02:36]}  g6 {[%clk 0:02:32]} 16. Rh3 {[%clk 0:02:36]}  Ng7 {[%clk 0:02:04]} 17. Nde2 {[%clk 0:02:18]}  Rfd8 {[%clk 0:01:51]} 18. Qe1 {[%clk 0:02:18]}  Nf8 {[%clk 0:01:50]} 19. Be3 {[%clk 0:01:59]}  d5 {[%clk 0:01:45]} 20. exd5 {[%clk 0:01:58]}  exd5 {[%clk 0:01:45]} 21. Nd4 {[%clk 0:01:52]}  Bd6 {[%clk 0:01:43]} 22. Qf2 {[%clk 0:01:52]}  Re8 {[%clk 0:01:42]} 23. Rf1 {[%clk 0:01:51]}  Bc8 {[%clk 0:01:34]} 24. Nxd5 {[%clk 0:01:49]}  Bxh3 {[%clk 0:01:32]} 25. Nxc7 {[%clk 0:01:45]}  Bxg2+ {[%clk 0:01:33]} 26. Kxg2 {[%clk 0:01:44]}  Bxc7 {[%clk 0:01:34]} 27. f5 {[%clk 0:01:40]}  Nxf5 {[%clk 0:01:12]} 28. Nxf5 {[%clk 0:01:39]}  gxf5 {[%clk 0:01:13]} 29. Qxf5 {[%clk 0:01:36]}  Re7 {[%clk 0:01:13]} 30. Qf6 {[%clk 0:01:24]}  Bd8 {[%clk 0:01:12]} 31. Rf2 {[%clk 0:00:59]}  Ne6 {[%clk 0:00:53]} 32. Bd4 {[%clk 0:00:57]}  Nxd4 {[%clk 0:00:52]} 33. Qxd4 {[%clk 0:00:58]}  Bc7 {[%clk 0:00:49]} 34. h4 {[%clk 0:00:55]}  Rd8 {[%clk 0:00:48]} 35. Qf6 {[%clk 0:00:55]}  Rde8 {[%clk 0:00:48]} 36. b4 {[%clk 0:00:50]}  a5 {[%clk 0:00:47]} 37. bxa5 {[%clk 0:00:50]}  bxa5 {[%clk 0:00:48]} 38. c4 {[%clk 0:00:51]}  Be5 {[%clk 0:00:46]} 39. Qf5 {[%clk 0:00:51]}  Bd4 {[%clk 0:00:46]} 40. Rd2 {[%clk 0:00:47]}  Re5 {[%clk 0:00:45]} 41. Qd7 {[%clk 0:00:40]}  Bc5 {[%clk 0:00:43]} 42. Qc6 {[%clk 0:00:31]}  R8e6 {[%clk 0:00:36]} 43. Qc8+ {[%clk 0:00:29]}  Kg7 {[%clk 0:00:37]} 44. Qc7 {[%clk 0:00:20]}  Kg6 {[%clk 0:00:31]} 45. Rd3 {[%clk 0:00:15]}  Re7 {[%clk 0:00:28]} 46. Qc6+ {[%clk 0:00:15]}  R7e6 {[%clk 0:00:26]} 47. Qc8 {[%clk 0:00:14]}  Re8 {[%clk 0:00:25]} 48. Qc6+ {[%clk 0:00:09]}  R8e6 {[%clk 0:00:24]} 49. Qa8 {[%clk 0:00:09]}  Kh5 {[%clk 0:00:18]} 50. Kg3 {[%clk 0:00:06]}  Re1 {[%clk 0:00:13]} 51. Qf3+ {[%clk 0:00:03]}  Kg6 {[%clk 0:00:12]} 52. h5+ {[%clk 0:00:00]}  Kg7 {[%clk 0:00:03]} 0-1


[Site "https://www.chess.com"]

[Event "Titled Tuesday Blitz July 25 Late 2023"]
[White "Elsa167"]
[Black "whiteglovethief"]
[WhiteElo "2761"]
[BlackElo "2492"]
[Result "1-0"]
[Round "3"]
[TimeControl "180+2"]
[Date "2023.07.25"]
[WhiteClock "0:01:07"]
[BlackClock "0:01:37"]
[Board "62"]

1. e4 {[%clk 0:03:00]}  d5 {[%clk 0:02:59]} 2. d3 {[%clk 0:02:58]}  dxe4 {[%clk 0:02:58]} 3. Nc3 {[%clk 0:02:59]}  exd3 {[%clk 0:02:58]} 4. Bxd3 {[%clk 0:03:00]}  Nf6 {[%clk 0:02:57]} 5. Bg5 {[%clk 0:03:00]}  Bg4 {[%clk 0:02:51]} 6. f3 {[%clk 0:02:57]}  Bh5 {[%clk 0:02:51]} 7. Qe2 {[%clk 0:02:55]}  Bg6 {[%clk 0:02:50]} 8. O-O-O {[%clk 0:02:54]}  Nbd7 {[%clk 0:02:50]} 9. h4 {[%clk 0:02:51]}  Bxd3 {[%clk 0:02:47]} 10. Rxd3 {[%clk 0:02:44]}  e6 {[%clk 0:02:48]} 11. Nh3 {[%clk 0:02:40]}  Bd6 {[%clk 0:02:47]} 12. Nb5 {[%clk 0:02:36]}  h6 {[%clk 0:02:43]} 13. Bxf6 {[%clk 0:02:19]}  Nxf6 {[%clk 0:02:41]} 14. Rhd1 {[%clk 0:02:17]}  O-O {[%clk 0:02:39]} 15. Nxd6 {[%clk 0:02:17]}  cxd6 {[%clk 0:02:39]} 16. Rxd6 {[%clk 0:02:18]}  Qa5 {[%clk 0:02:37]} 17. Kb1 {[%clk 0:02:15]}  Nd5 {[%clk 0:02:35]} 18. c4 {[%clk 0:02:02]}  Qb4 {[%clk 0:02:33]} 19. Qe5 {[%clk 0:02:01]}  Nb6 {[%clk 0:02:25]} 20. Qb5 {[%clk 0:01:52]}  Qxb5 {[%clk 0:02:15]} 21. cxb5 {[%clk 0:01:52]}  Rac8 {[%clk 0:02:13]} 22. b3 {[%clk 0:01:52]}  Rc5 {[%clk 0:02:11]} 23. a4 {[%clk 0:01:52]}  Rc3 {[%clk 0:02:11]} 24. Kb2 {[%clk 0:01:51]}  Rfc8 {[%clk 0:02:10]} 25. Rd8+ {[%clk 0:01:51]}  Kh7 {[%clk 0:02:08]} 26. Rxc8 {[%clk 0:01:51]}  Rxc8 {[%clk 0:02:08]} 27. Nf4 {[%clk 0:01:49]}  g5 {[%clk 0:02:07]} 28. hxg5 {[%clk 0:01:49]}  hxg5 {[%clk 0:02:08]} 29. a5 {[%clk 0:01:27]}  gxf4 {[%clk 0:02:07]} 30. axb6 {[%clk 0:01:27]}  axb6 {[%clk 0:02:07]} 31. Rd7 {[%clk 0:01:28]}  Kg6 {[%clk 0:02:04]} 32. Rxb7 {[%clk 0:01:27]}  Rh8 {[%clk 0:01:58]} 33. Rxb6 {[%clk 0:01:26]}  Rh2 {[%clk 0:01:59]} 34. Rc6 {[%clk 0:01:24]}  Rxg2+ {[%clk 0:02:00]} 35. Ka3 {[%clk 0:01:16]}  Rd2 {[%clk 0:01:54]} 36. b6 {[%clk 0:01:15]}  Rd7 {[%clk 0:01:52]} 37. Rc7 {[%clk 0:01:13]}  Rd6 {[%clk 0:01:53]} 38. b7 {[%clk 0:01:13]}  Rb6 {[%clk 0:01:53]} 39. Ka4 {[%clk 0:01:12]}  e5 {[%clk 0:01:48]} 40. Rc6+ {[%clk 0:01:06]}  Rxc6 {[%clk 0:01:48]} 41. b8=Q {[%clk 0:01:07]}  f6 {[%clk 0:01:37]} 42. Qe8+ {[%clk 0:01:07]} 1-0


[Site "https://www.chess.com"]

[Event "Titled Tuesday Blitz July 25 Late 2023"]
[White "Roberson, Peter T"]
[Black "Fantastic_Power"]
[WhiteFideId "412384"]
[WhiteElo "2491"]
[BlackElo "2754"]
[Result "0-1"]
[Round "3"]
[TimeControl "180+2"]
[Date "2023.07.25"]
[WhiteClock "0:00:00"]
[BlackClock "0:00:03"]
[Board "63"]

1. c4 {[%clk 0:03:00]}  e6 {[%clk 0:02:59]} 2. d4 {[%clk 0:03:00]}  Nf6 {[%clk 0:02:58]} 3. Nc3 {[%clk 0:02:59]}  Bb4 {[%clk 0:02:56]} 4. Bd2 {[%clk 0:02:59]}  O-O {[%clk 0:02:54]} 5. Nf3 {[%clk 0:02:59]}  c5 {[%clk 0:02:54]} 6. a3 {[%clk 0:02:58]}  Bxc3 {[%clk 0:02:52]} 7. Bxc3 {[%clk 0:02:59]}  b6 {[%clk 0:02:49]} 8. e3 {[%clk 0:02:33]}  Bb7 {[%clk 0:02:46]} 9. Bd3 {[%clk 0:02:33]}  Ne4 {[%clk 0:02:44]} 10. Qc2 {[%clk 0:02:32]}  f5 {[%clk 0:02:43]} 11. O-O {[%clk 0:02:31]}  d6 {[%clk 0:02:40]} 12. Nd2 {[%clk 0:02:17]}  Nxc3 {[%clk 0:02:30]} 13. Qxc3 {[%clk 0:02:18]}  Nd7 {[%clk 0:02:29]} 14. b4 {[%clk 0:02:06]}  Qg5 {[%clk 0:02:27]} 15. g3 {[%clk 0:01:44]}  Qg4 {[%clk 0:02:28]} 16. Rfe1 {[%clk 0:01:38]}  Rf6 {[%clk 0:02:21]} 17. Be2 {[%clk 0:01:35]}  Qh3 {[%clk 0:02:19]} 18. Bf1 {[%clk 0:01:34]}  Qh5 {[%clk 0:02:20]} 19. d5 {[%clk 0:01:22]}  Rh6 {[%clk 0:02:17]} 20. Bg2 {[%clk 0:01:19]}  Qxh2+ {[%clk 0:02:09]} 21. Kf1 {[%clk 0:01:19]}  Ne5 {[%clk 0:02:09]} 22. Rad1 {[%clk 0:01:04]}  Rf8 {[%clk 0:02:05]} 23. Nf3 {[%clk 0:00:59]}  Nxf3 {[%clk 0:01:57]} 24. Bxf3 {[%clk 0:00:59]}  exd5 {[%clk 0:01:48]} 25. Bxd5+ {[%clk 0:00:51]}  Bxd5 {[%clk 0:01:47]} 26. Rxd5 {[%clk 0:00:52]}  Re6 {[%clk 0:01:37]} 27. Qd3 {[%clk 0:00:50]}  f4 {[%clk 0:01:33]} 28. gxf4 {[%clk 0:00:43]}  Rxf4 {[%clk 0:01:33]} 29. Qd2 {[%clk 0:00:31]}  Qh1+ {[%clk 0:01:12]} 30. Ke2 {[%clk 0:00:32]}  Rxf2+ {[%clk 0:01:09]} 31. Kxf2 {[%clk 0:00:30]}  Qh2+ {[%clk 0:01:10]} 32. Kf3 {[%clk 0:00:28]}  Rf6+ {[%clk 0:00:47]} 33. Ke4 {[%clk 0:00:25]}  Rf2 {[%clk 0:00:47]} 34. Qd1 {[%clk 0:00:19]}  Qg2+ {[%clk 0:00:39]} 35. Kd3 {[%clk 0:00:20]}  Ra2 {[%clk 0:00:31]} 36. Re2 {[%clk 0:00:19]}  Qg6+ {[%clk 0:00:21]} 37. Kc3 {[%clk 0:00:09]}  Qf6+ {[%clk 0:00:17]} 38. Kb3 {[%clk 0:00:07]}  Ra1 {[%clk 0:00:18]} 39. Qd3 {[%clk 0:00:04]}  cxb4 {[%clk 0:00:12]} 40. axb4 {[%clk 0:00:05]}  a5 {[%clk 0:00:11]} 41. bxa5 {[%clk 0:00:03]}  bxa5 {[%clk 0:00:12]} 42. Rxd6 {[%clk 0:00:02]}  a4+ {[%clk 0:00:13]} 43. Kb4 {[%clk 0:00:03]}  Qe7 {[%clk 0:00:13]} 44. c5 {[%clk 0:00:03]}  Qb7+ {[%clk 0:00:11]} 45. Kc3 {[%clk 0:00:01]}  Ra3+ {[%clk 0:00:11]} 46. Kd4 {[%clk 0:00:02]}  Qb4+ {[%clk 0:00:06]} 47. Ke5 {[%clk 0:00:02]}  Rxd3 {[%clk 0:00:06]} 48. Rxd3 {[%clk 0:00:02]}  Qxc5+ {[%clk 0:00:07]} 49. Rd5 {[%clk 0:00:02]}  Qc3+ {[%clk 0:00:07]} 50. Kf4 {[%clk 0:00:02]}  a3 {[%clk 0:00:06]} 51. Red2 {[%clk 0:00:02]}  h6 {[%clk 0:00:06]} 52. R5d3 {[%clk 0:00:01]}  Qb4+ {[%clk 0:00:05]} 53. Rd4 {[%clk 0:00:02]}  Qa5 {[%clk 0:00:06]} 54. Ra2 {[%clk 0:00:01]}  Qg5+ {[%clk 0:00:04]} 55. Kf3 {[%clk 0:00:01]}  Qg6 {[%clk 0:00:03]} 56. Ke2 {[%clk 0:00:00]}  Qa6+ {[%clk 0:00:03]} 0-1


[Site "https://www.chess.com"]